fUST/lending_fUST_20250504
["ID","MTS","AMOUNT","RATE_DAILY","PERIOD"]
[359743586,1746293449203,-400.0,0.00019665,2]
[359743587,1746293449217,-400.0,0.00019665,2]
[359743588,1746293449231,-500.0,0.00019673,2]
[359743589,1746293449246,-300.0,0.00019673,2]
[359743590,1746293449260,-500.01151588,0.00019673,2]
[359743591,1746293449277,-500.0,0.00019673,2]
[359743592,1746293449291,-500.0,0.00019673,2]
[359743593,1746293449304,-500.0,0.00019673,2]
[359743594,1746293449318,-500.0,0.00019673,2]
[359743595,1746293449331,-500.0,0.00019673,2]
[359743596,1746293449345,-160.0,0.0001968,2]
[359743597,1746293449359,-160.0,0.0001968,2]
[359743598,1746293449373,-160.0,0.0001968,2]
[359743599,1746293449385,-160.0,0.0001968,2]
[359743600,1746293449397,-160.0,0.00019682,2]
[359743601,1746293449410,-182.16284668,0.00019682,2]
[359743602,1746293449424,-12601.56422439,0.00019682,2]
[359743603,1746293449437,-160.0,0.00019682,2]
[359743604,1746293449452,-160.0,0.00019682,2]
[359743606,1746293449467,-841.47485993,0.00019682,2]
[359743608,1746293449481,-160.0,0.00019682,2]
[359743611,1746293449496,-421.66712248,0.00019682,2]
[359743613,1746293449507,-160.0,0.00019682,2]
[359743614,1746293449518,-1345.0,0.00019757,2]
[359743615,1746293449529,-500.0,0.00019773,2]
[359743616,1746293449543,-2339.7949883,0.00019799,2]
[359743617,1746293449557,-635.0,0.000199,2]
[359743618,1746293449570,-10059.90242138,0.000199,2]
[359743619,1746293449580,-400.0,0.00019938,2]
[359743620,1746293449593,-400.0,0.00019938,2]
[359743621,1746293449605,-400.0,0.00019938,2]
[359743622,1746293449617,-987.43,0.00019938,2]
[359743623,1746293449629,-674.37,0.00019938,2]
[359743624,1746293449640,-400.0,0.00019938,2]
[359743625,1746293449652,-400.0,0.00019938,2]
[359743626,1746293449663,-501.03,0.00019938,2]
[359743627,1746293449675,-105.22360014,0.00019939,2]
[359743628,1746293449915,-294.77639986,0.00019939,2]
[359743629,1746293449927,-316.26,0.00019939,2]
[359743630,1746293449939,-400.0,0.00019939,2]
[359743631,1746293449951,-469.4,0.00019939,2]
[359743632,1746293449963,-400.0,0.00019939,2]
[359743633,1746293449975,-400.0,0.00019939,2]
[359743634,1746293449988,-400.0,0.00019939,2]
[359743635,1746293449999,-471.97,0.00019939,2]
[359743636,1746293450011,-432.47,0.00019939,2]
[359743638,1746293450023,-400.0,0.00019939,2]
[359743640,1746293450036,-400.0,0.00019939,2]
[359743642,1746293450047,-491.64,0.00019939,2]
[359743644,1746293450059,-400.0,0.00019939,2]
[359743646,1746293450070,-400.0,0.00019939,2]
[359743648,1746293450083,-1181.64,0.00019939,2]
[359743650,1746293450095,-451.64,0.00019939,2]
[359743652,1746293450107,-400.0,0.00019939,2]
[359743653,1746293450119,-872.96,0.00019939,2]
[359743655,1746293450131,-440.68,0.00019939,2]
[359743657,1746293450143,-400.0,0.00019939,2]
[359743658,1746293450155,-400.0,0.00019939,2]
[359743659,1746293450297,-312.79932747,0.00019939,2]
[359743660,1746293450311,-502.5972603,0.00019973,2]
[359743661,1746293450321,-500.0,0.00019973,2]
[359743662,1746293450331,-500.0,0.00019973,2]
[359743663,1746293450340,-500.0,0.00019973,2]
[359743664,1746293450350,-500.0,0.00019973,2]
[359743665,1746293450359,-373.54494075,0.00019973,2]
[359743666,1746293450368,-500.0,0.00019973,2]
[359743667,1746293450377,-500.0,0.00019973,2]
[359743668,1746293450387,-63632.58206045,0.0002,2]
[359743669,1746293450396,-1332.945749,0.0002,2]
[359743670,1746293450405,-173.125,0.0002,2]
[359743671,1746293450415,-151.62972542,0.0002,2]
[359743672,1746293450425,-51808.50733867,0.0002,2]
[359743673,1746293450435,-2000.0,0.0002,4]
[359743674,1746293450444,-151.0,0.000201,4]
[359743675,1746293450454,-400.0,0.00020212,2]
[359743676,1746293450463,-400.0,0.00020212,2]
[359743677,1746293450472,-400.0,0.00020212,2]
[359743678,1746293450482,-987.43,0.00020212,2]
[359743679,1746293450491,-674.37,0.00020212,2]
[359743680,1746293450500,-400.0,0.00020212,2]
[359743681,1746293450509,-400.0,0.00020212,2]
[359743682,1746293450520,-501.03,0.00020212,2]
[359743683,1746293450530,-744.39,0.00020213,2]
[359743684,1746293450540,-400.0,0.00020213,2]
[359743685,1746293450550,-541.69,0.00020213,2]
[359743686,1746293450559,-400.0,0.00020213,2]
[359743687,1746293450569,-400.0,0.00020213,2]
[359743688,1746293450578,-410.14,0.00020213,2]
[359743689,1746293450588,-400.0,0.00020213,2]
[359743690,1746293450598,-400.0,0.00020213,2]
[359743691,1746293450607,-400.0,0.00020213,2]
[359743692,1746293450617,-400.0,0.00020213,2]
[359743693,1746293450626,-1576.28,0.00020213,2]
[359743694,1746293450636,-400.0,0.00020213,2]
[359743695,1746293450647,-400.0,0.00020213,2]
[359743696,1746293450656,-400.0,0.00020213,2]
[359743697,1746293450666,-400.0,0.00020213,2]
[359743698,1746293450676,-400.0,0.00020213,2]
[359743699,1746293450685,-317.50859034,0.00020213,2]
[359743700,1746293450698,-82.49140966,0.00020213,2]
[359743701,1746293450708,-400.0,0.00020213,2]
[359743702,1746293450718,-400.0,0.00020213,2]
[359743703,1746293450728,-400.0,0.00020213,2]
[359743704,1746293450738,-400.0,0.00020213,2]
[359743705,1746293450747,-141.46568606,0.00020213,2]
[359743706,1746293451303,-1580.306924,0.00019,2]
[359743707,1746293451315,-4909.88092697,0.00019,2]
[359743708,1746293451325,-659.79431394,0.00020213,2]
[359743709,1746293451335,-400.0,0.00020213,2]
[359743710,1746293451345,-622.59,0.00020213,2]
[359743711,1746293451355,-424.59,0.00020213,2]
[359743712,1746293451364,-452.46,0.00020213,2]
[359743713,1746293451374,-400.0,0.00020213,2]
[359743714,1746293451383,-400.0,0.00020213,2]
[359743715,1746293451393,-400.0,0.00020213,2]
[359743716,1746293451402,-469.4,0.00020213,2]
[359743717,1746293451412,-400.0,0.00020213,2]
[359743718,1746293451421,-400.0,0.00020213,2]
[359743719,1746293451431,-400.0,0.00020213,2]
[359743720,1746293451440,-471.97,0.00020213,2]
[359743721,1746293451449,-432.47,0.00020213,2]
[359743722,1746293451459,-400.0,0.00020213,2]
[359743723,1746293451469,-500.0,0.00020213,2]
[359743724,1746293451477,-400.0,0.00020213,2]
[359743725,1746293451487,-491.64,0.00020213,2]
[359743726,1746293451496,-400.0,0.00020213,2]
[359743727,1746293451505,-400.0,0.00020213,2]
[359743728,1746293451514,-1181.64,0.00020213,2]
[359743729,1746293451524,-451.64,0.00020213,2]
[359743730,1746293451534,-400.0,0.00020213,2]
[359743731,1746293451543,-872.96,0.00020213,2]
[359743732,1746293451552,-440.68,0.00020213,2]
[359743733,1746293451561,-400.0,0.00020213,2]
[359743734,1746293451570,-400.0,0.00020213,2]
[359743735,1746293451580,-400.0,0.00020216,2]
[359743736,1746293451589,-465.84777437,0.00020272,2]
[359743737,1746293451598,-1500.0,0.00020274,2]
[359743738,1746293451607,-400.0,0.00020486,2]
[359743739,1746293451617,-400.0,0.00020486,2]
[359743740,1746293451627,-453.48,0.00020486,2]
[359743741,1746293451637,-987.43,0.00020486,2]
[359743742,1746293451646,-674.37,0.00020486,2]
[359743743,1746293451655,-400.0,0.00020486,2]
[359743744,1746293451665,-400.0,0.00020486,2]
[359743745,1746293451676,-501.03,0.00020486,2]
[359743746,1746293451686,-500.0,0.00020487,2]
[359743747,1746293451696,-744.39,0.00020487,2]
[359743748,1746293451705,-541.69,0.00020487,2]
[359743749,1746293451715,-400.0,0.00020487,2]
[359743750,1746293451725,-410.14,0.00020487,2]
[359743751,1746293451733,-400.0,0.00020487,2]
[359743752,1746293451742,-400.0,0.00020487,2]
[359743753,1746293451751,-400.0,0.00020487,2]
[359743754,1746293451761,-400.0,0.00020487,2]
[359743755,1746293451770,-400.0,0.00020487,2]
[359743756,1746293451782,-1576.28,0.00020487,2]
[359743757,1746293451792,-400.0,0.00020487,2]
[359743758,1746293451801,-400.0,0.00020487,2]
[359743759,1746293451811,-400.0,0.00020487,2]
[359743760,1746293451821,-400.0,0.00020487,2]
[359743761,1746293451831,-400.0,0.00020487,2]
[359743762,1746293451841,-272.44455082,0.00020487,2]
[359743763,1746293451852,-400.0,0.00020487,2]
[359743764,1746293451861,-400.0,0.00020487,2]
[359743765,1746293451871,-400.0,0.00020487,2]
[359743766,1746293451881,-400.0,0.00020487,2]
[359743768,1746293451890,-801.26,0.00020487,2]
[359743769,1746293451899,-400.0,0.00020487,2]
[359743770,1746293451909,-622.59,0.00020487,2]
[359743771,1746293451919,-424.59,0.00020487,2]
[359743772,1746293451928,-452.46,0.00020487,2]
[359743773,1746293451937,-400.0,0.00020487,2]
[359743774,1746293451948,-400.0,0.00020487,2]
[359743775,1746293451959,-400.0,0.00020487,2]
[359743776,1746293451968,-469.4,0.00020487,2]
[359743777,1746293451977,-400.0,0.00020487,2]
[359743778,1746293451989,-400.0,0.00020487,2]
[359743779,1746293451999,-400.0,0.00020487,2]
[359743780,1746293452008,-471.97,0.00020487,2]
[359743781,1746293452017,-432.47,0.00020487,2]
[359743782,1746293452027,-543.73960878,0.00020487,2]
[359743783,1746293452037,-400.0,0.00020487,2]
[359743784,1746293452046,-491.64,0.00020487,2]
[359743785,1746293452055,-281.94,0.00020487,2]
[359743786,1746293452065,-400.0,0.00020487,2]
[359743787,1746293452075,-1181.64,0.00020487,2]
[359743788,1746293452084,-451.64,0.00020487,2]
[359743789,1746293452094,-400.0,0.00020487,2]
[359743790,1746293452104,-872.96,0.00020487,2]
[359743791,1746293452115,-440.68,0.00020487,2]
[359743792,1746293452125,-400.0,0.00020487,2]
[359743793,1746293452136,-400.0,0.00020487,2]
[359743794,1746293452146,-400.0,0.0002049,2]
[359743795,1746293452157,-10059.90242138,0.0002059,3]
[359743796,1746293452166,-12601.56422439,0.0002059,3]
[359743797,1746293452175,-12500.0,0.00020651,2]
[359743798,1746293452186,-12500.0,0.0002066,2]
[359743799,1746293452208,-12500.0,0.00020669,2]
[359743800,1746293452217,-500.0,0.00020673,2]
[359743801,1746293452227,-445.01008177,0.00020673,2]
[359743802,1746293452238,-500.0,0.00020673,2]
[359743803,1746293452249,-500.0,0.00020673,2]
[359743804,1746293452259,-530.58918017,0.00020673,2]
[359743805,1746293452269,-181.45757745,0.00020673,2]
[359743806,1746293452281,-500.0,0.00020673,2]
[359743807,1746293452291,-500.0,0.00020673,2]
[359743808,1746293452302,-500.0,0.00020673,2]
[359743809,1746293452312,-500.0,0.00020673,2]
[359743810,1746293452321,-321.28955733,0.00020673,2]
[359743811,1746293452332,-471.53772096,0.00020673,2]
[359743812,1746293452341,-500.0,0.00020673,2]
[359743813,1746293452350,-500.0,0.00020673,2]
[359743814,1746293452360,-500.0,0.00020673,2]
[359743815,1746293452370,-522.50746598,0.00020673,2]
[359743816,1746293452380,-580.35132757,0.00020673,2]
[359743817,1746293452392,-500.0,0.00020673,2]
[359743818,1746293452403,-509.85479993,0.00020673,2]
[359743819,1746293452413,-503.20920224,0.00020673,2]
[359743820,1746293452424,-500.0,0.00020673,2]
[359743821,1746293452434,-500.0,0.00020673,2]
[359743822,1746293452443,-500.0,0.00020673,2]
[359743823,1746293452454,-12500.0,0.00020678,2]
[359743824,1746293452464,-12500.0,0.00020686,2]
[359743825,1746293452474,-12500.0,0.00020695,2]
[359743826,1746293452484,-12500.0,0.00020704,2]
[359743827,1746293452493,-4551.93225198,0.00020704,2]
[359743828,1746293452503,-400.0,0.0002076,2]
[359743829,1746293452512,-400.0,0.0002076,2]
[359743830,1746293452522,-987.43,0.0002076,2]
[359743831,1746293452531,-674.37,0.0002076,2]
[359743832,1746293452541,-400.0,0.0002076,2]
[359743833,1746293452550,-400.0,0.0002076,2]
[359743834,1746293452559,-501.03,0.0002076,2]
[359743835,1746293452569,-500.0,0.00020761,2]
[359743836,1746293452579,-744.39,0.00020761,2]
[359743837,1746293452588,-541.69,0.00020761,2]
[359743838,1746293452598,-400.0,0.00020761,2]
[359743839,1746293452607,-410.14,0.00020761,2]
[359743840,1746293452618,-400.0,0.00020761,2]
[359743841,1746293452627,-400.0,0.00020761,2]
[359743842,1746293452637,-400.0,0.00020761,2]
[359743843,1746293452647,-400.0,0.00020761,2]
[359743844,1746293452657,-400.0,0.00020761,2]
[359743845,1746293452666,-1576.28,0.00020761,2]
[359743846,1746293452676,-400.0,0.00020761,2]
[359743847,1746293452686,-400.0,0.00020761,2]
[359743848,1746293452696,-400.0,0.00020761,2]
[359743849,1746293452706,-400.0,0.00020761,2]
[359743850,1746293452716,-400.0,0.00020761,2]
[359743851,1746293452726,-400.0,0.00020761,2]
[359743852,1746293452883,-549.74,0.00020761,2]
[359743853,1746293452893,-400.0,0.00020761,2]
[359743854,1746293452902,-400.0,0.00020761,2]
[359743855,1746293452912,-801.26,0.00020761,2]
[359743856,1746293452922,-400.0,0.00020761,2]
[359743857,1746293452931,-622.59,0.00020761,2]
[359743858,1746293452941,-424.59,0.00020761,2]
[359743859,1746293452950,-452.46,0.00020761,2]
[359743860,1746293452960,-400.0,0.00020761,2]
[359743861,1746293452969,-400.0,0.00020761,2]
[359743862,1746293452978,-400.0,0.00020761,2]
[359743863,1746293452988,-469.4,0.00020761,2]
[359743864,1746293452997,-400.0,0.00020761,2]
[359743865,1746293453006,-400.0,0.00020761,2]
[359743866,1746293453015,-400.0,0.00020761,2]
[359743867,1746293453025,-471.97,0.00020761,2]
[359743868,1746293453034,-432.47,0.00020761,2]
[359743869,1746293453044,-400.0,0.00020761,2]
[359743870,1746293453053,-491.64,0.00020761,2]
[359743871,1746293453062,-400.0,0.00020761,2]
[359743872,1746293453072,-1181.64,0.00020761,2]
[359743873,1746293453082,-451.64,0.00020761,2]
[359743874,1746293453091,-400.0,0.00020761,2]
[359743875,1746293453101,-872.96,0.00020761,2]
[359743876,1746293453111,-440.68,0.00020761,2]
[359743877,1746293453120,-400.0,0.00020761,2]
[359743878,1746293453130,-400.0,0.00020761,2]
[359743879,1746293453140,-400.0,0.00020764,2]
[359743880,1746293453149,-192.0,0.000208,2]
[359743881,1746293453159,-712.059,0.00020823,2]
[359743882,1746293453169,-2248.0,0.00020823,2]
[359743883,1746293453178,-403.0,0.00020823,2]
[359743884,1746293453188,-403.0,0.00020823,2]
[359743885,1746293453197,-1000.0,0.0002088,2]
[359743886,1746293453208,-3094.59507372,0.00020926,2]
[359743887,1746293453219,-563.809,0.00020993,2]
[359743888,1746293453229,-223802.37585,0.00020999,2]
[359743889,1746293453239,-12601.56422439,0.00021,3]
[359743890,1746293453249,-192.0,0.00021,2]
[359743891,1746293453258,-297.514,0.00021,2]
[359743892,1746293453267,-5195.0,0.00021,2]
[359743893,1746293453276,-5195.0,0.00021,2]
[359743894,1746293453286,-5195.0,0.00021,2]
[359743895,1746293453295,-5195.0,0.00021,2]
[359743896,1746293453304,-5195.0,0.00021,2]
[359743897,1746293453313,-150.0,0.00021,2]
[359743898,1746293453322,-157.62,0.00021,2]
[359743899,1746293453332,-157.62,0.00021,2]
[359743900,1746293453341,-2224.2189,0.00021,2]
[359743901,1746293453351,-400.0,0.00021034,2]
[359743902,1746293453360,-400.0,0.00021034,2]
[359743903,1746293453370,-987.43,0.00021034,2]
[359743904,1746293453379,-674.37,0.00021034,2]
[359743905,1746293453389,-400.0,0.00021034,2]
[359743906,1746293453398,-400.0,0.00021034,2]
[359743907,1746293453408,-501.03,0.00021034,2]
[359743908,1746293453418,-329.53932281,0.00021035,2]
[359743909,1746293453427,-744.39,0.00021035,2]
[359743910,1746293453436,-541.69,0.00021035,2]
[359743911,1746293453447,-400.0,0.00021035,2]
[359743912,1746293453458,-410.14,0.00021035,2]
[359743913,1746293453468,-400.0,0.00021035,2]
[359743914,1746293453477,-400.0,0.00021035,2]
[359743915,1746293453487,-400.0,0.00021035,2]
[359743916,1746293453497,-400.0,0.00021035,2]
[359743917,1746293453508,-400.0,0.00021035,2]
[359743918,1746293453519,-1576.28,0.00021035,2]
[359743919,1746293453529,-400.0,0.00021035,2]
[359743920,1746293453539,-400.0,0.00021035,2]
[359743921,1746293453548,-400.0,0.00021035,2]
[359743922,1746293453557,-377.69589179,0.00021035,2]
[359743923,1746293453566,-400.0,0.00021035,2]
[359743924,1746293453576,-400.0,0.00021035,2]
[359743925,1746293453586,-400.0,0.00021035,2]
[359743926,1746293453595,-400.0,0.00021035,2]
[359743927,1746293453606,-801.26,0.00021035,2]
[359743928,1746293453615,-400.0,0.00021035,2]
[359743929,1746293453625,-622.59,0.00021035,2]
[359743930,1746293453634,-424.59,0.00021035,2]
[359743931,1746293453644,-452.46,0.00021035,2]
[359743932,1746293453653,-400.0,0.00021035,2]
[359743933,1746293453662,-400.0,0.00021035,2]
[359743934,1746293453672,-318.14598747,0.00021035,2]
[359743935,1746293453682,-469.4,0.00021035,2]
[359743936,1746293453692,-400.0,0.00021035,2]
[359743937,1746293453702,-370.90363952,0.00021035,2]
[359743938,1746293453712,-400.0,0.00021035,2]
[359743939,1746293453722,-471.97,0.00021035,2]
[359743940,1746293453733,-432.47,0.00021035,2]
[359743941,1746293453743,-400.0,0.00021035,2]
[359743942,1746293453753,-491.64,0.00021035,2]
[359743943,1746293453762,-400.0,0.00021035,2]
[359743944,1746293453772,-1181.64,0.00021035,2]
[359743945,1746293453785,-451.64,0.00021035,2]
[359743946,1746293453795,-400.0,0.00021035,2]
[359743947,1746293453806,-872.96,0.00021035,2]
[359743948,1746293453816,-440.68,0.00021035,2]
[359743949,1746293453828,-400.0,0.00021035,2]
[359743950,1746293453837,-400.0,0.00021035,2]
[359743951,1746293453847,-400.0,0.00021038,2]
[359743952,1746293453857,-500.0,0.00021094,2]
[359743953,1746293453867,-501.95024765,0.00021094,2]
[359743954,1746293453876,-500.0,0.00021094,2]
[359743955,1746293453886,-500.0,0.00021094,2]
[359743956,1746293453896,-500.0,0.00021094,2]
[359743957,1746293453905,-500.0,0.00021094,2]
[359743958,1746293453915,-500.0,0.00021094,2]
[359743959,1746293453924,-500.0,0.00021094,2]
[359743960,1746293453934,-500.0,0.00021094,2]
[359743961,1746293453944,-2000.0,0.00021096,2]
[359743962,1746293453953,-2366.34,0.000211,2]
[359743963,1746293453964,-10059.90242138,0.00021279,5]
[359743964,1746293453973,-400.0,0.00021308,2]
[359743965,1746293453983,-400.0,0.00021308,2]
[359743966,1746293453993,-987.43,0.00021308,2]
[359743967,1746293454002,-674.37,0.00021308,2]
[359743968,1746293454012,-400.0,0.00021308,2]
[359743969,1746293454023,-400.0,0.00021308,2]
[359743970,1746293454033,-501.03,0.00021308,2]
[359743971,1746293454043,-744.39,0.00021309,2]
[359743972,1746293454053,-541.69,0.00021309,2]
[359743973,1746293454063,-400.0,0.00021309,2]
[359743974,1746293454072,-410.14,0.00021309,2]
[359743975,1746293454082,-400.0,0.00021309,2]
[359743976,1746293454092,-400.0,0.00021309,2]
[359743977,1746293454102,-400.0,0.00021309,2]
[359743978,1746293454123,-400.0,0.00021309,2]
[359743979,1746293454133,-400.0,0.00021309,2]
[359743980,1746293454143,-1576.28,0.00021309,2]
[359743981,1746293454154,-400.0,0.00021309,2]
[359743982,1746293454165,-400.0,0.00021309,2]
[359743983,1746293454175,-400.0,0.00021309,2]
[359743984,1746293454186,-400.0,0.00021309,2]
[359743985,1746293454196,-400.0,0.00021309,2]
[359743986,1746293454205,-400.0,0.00021309,2]
[359743987,1746293454216,-400.0,0.00021309,2]
[359743988,1746293454226,-801.26,0.00021309,2]
[359743989,1746293454236,-400.0,0.00021309,2]
[359743990,1746293454246,-622.59,0.00021309,2]
[359743991,1746293454256,-424.59,0.00021309,2]
[359743992,1746293454266,-452.46,0.00021309,2]
[359743993,1746293454276,-304.24,0.00021309,2]
[359743994,1746293454286,-400.0,0.00021309,2]
[359743995,1746293454296,-469.4,0.00021309,2]
[359743996,1746293454305,-400.0,0.00021309,2]
[359743997,1746293454315,-400.0,0.00021309,2]
[359743998,1746293454325,-471.97,0.00021309,2]
[359743999,1746293454335,-432.47,0.00021309,2]
[359744000,1746293454345,-400.0,0.00021309,2]
[359744001,1746293454355,-491.64,0.00021309,2]
[359744002,1746293454365,-400.0,0.00021309,2]
[359744003,1746293454377,-1181.64,0.00021309,2]
[359744004,1746293454388,-451.64,0.00021309,2]
[359744005,1746293454397,-400.0,0.00021309,2]
[359744006,1746293454407,-872.96,0.00021309,2]
[359744007,1746293454417,-440.68,0.00021309,2]
[359744008,1746293454427,-400.0,0.00021309,2]
[359744009,1746293454437,-400.0,0.00021309,2]
[359744010,1746293454446,-400.0,0.00021312,2]
[359744011,1746293454456,-600.0,0.00021316,2]
[359744012,1746293454466,-587.0,0.00021451,2]
[359744013,1746293454476,-400.0,0.00021582,2]
[359744014,1746293454487,-400.0,0.00021582,2]
[359744015,1746293454497,-987.43,0.00021582,2]
[359744016,1746293454507,-674.37,0.00021582,2]
[359744017,1746293454517,-400.0,0.00021582,2]
[359744018,1746293454527,-353.88022382,0.00021582,2]
[359744019,1746293454537,-501.03,0.00021582,2]
[359744020,1746293454547,-744.39,0.00021583,2]
[359744021,1746293454557,-541.69,0.00021583,2]
[359744022,1746293454567,-400.0,0.00021583,2]
[359744023,1746293454576,-410.14,0.00021583,2]
[359744024,1746293454586,-400.0,0.00021583,2]
[359744025,1746293454596,-400.0,0.00021583,2]
[359744026,1746293454606,-400.0,0.00021583,2]
[359744027,1746293454616,-400.0,0.00021583,2]
[359744028,1746293454626,-400.0,0.00021583,2]
[359744029,1746293454635,-1576.28,0.00021583,2]
[359744030,1746293454645,-400.0,0.00021583,2]
[359744031,1746293454655,-536.92,0.00021583,2]
[359744032,1746293454665,-400.0,0.00021583,2]
[359744033,1746293454675,-400.0,0.00021583,2]
[359744034,1746293454685,-400.0,0.00021583,2]
[359744035,1746293454695,-400.0,0.00021583,2]
[359744036,1746293454705,-400.0,0.00021583,2]
[359744037,1746293454716,-801.26,0.00021583,2]
[359744038,1746293454730,-400.0,0.00021583,2]
[359744039,1746293454741,-622.59,0.00021583,2]
[359744040,1746293454752,-424.59,0.00021583,2]
[359744041,1746293454763,-452.46,0.00021583,2]
[359744042,1746293454773,-400.0,0.00021583,2]
[359744043,1746293454787,-469.4,0.00021583,2]
[359744044,1746293454797,-400.0,0.00021583,2]
[359744045,1746293454807,-400.0,0.00021583,2]
[359744046,1746293454818,-471.97,0.00021583,2]
[359744047,1746293454829,-432.47,0.00021583,2]
[359744048,1746293454839,-400.0,0.00021583,2]
[359744049,1746293454849,-491.64,0.00021583,2]
[359744050,1746293454861,-400.0,0.00021583,2]
[359744051,1746293454872,-1181.64,0.00021583,2]
[359744052,1746293454883,-451.64,0.00021583,2]
[359744053,1746293454893,-400.0,0.00021583,2]
[359744054,1746293454903,-872.96,0.00021583,2]
[359744055,1746293454914,-440.68,0.00021583,2]
[359744056,1746293454925,-400.0,0.00021583,2]
[359744057,1746293454936,-400.0,0.00021583,2]
[359744058,1746293454946,-400.0,0.00021586,2]
[359744059,1746293454956,-1033.82366461,0.00021811,2]
[359744060,1746293454968,-400.0,0.00021856,2]
[359744061,1746293454978,-400.0,0.00021856,2]
[359744062,1746293454989,-987.43,0.00021856,2]
[359744063,1746293455000,-674.37,0.00021856,2]
[359744064,1746293455010,-400.0,0.00021856,2]
[359744065,1746293455020,-501.03,0.00021856,2]
[359744066,1746293455030,-744.39,0.00021857,2]
[359744067,1746293455041,-541.69,0.00021857,2]
[359744068,1746293455051,-400.0,0.00021857,2]
[359744069,1746293455061,-410.14,0.00021857,2]
[359744070,1746293455072,-400.0,0.00021857,2]
[359744071,1746293455082,-400.0,0.00021857,2]
[359744072,1746293455092,-402.82909395,0.00021857,2]
[359744073,1746293455102,-400.0,0.00021857,2]
[359744074,1746293455112,-400.0,0.00021857,2]
[359744075,1746293455121,-1576.28,0.00021857,2]
[359744076,1746293455131,-540.22,0.00021857,2]
[359744077,1746293455141,-400.0,0.00021857,2]
[359744078,1746293455151,-400.0,0.00021857,2]
[359744079,1746293455161,-400.0,0.00021857,2]
[359744080,1746293455170,-400.0,0.00021857,2]
[359744081,1746293455318,-400.0,0.00021857,2]
[359744082,1746293455331,-801.26,0.00021857,2]
[359744083,1746293455341,-400.0,0.00021857,2]
[359744084,1746293455351,-622.59,0.00021857,2]
[359744085,1746293455361,-424.59,0.00021857,2]
[359744086,1746293455370,-452.46,0.00021857,2]
[359744087,1746293455380,-400.0,0.00021857,2]
[359744088,1746293455389,-469.4,0.00021857,2]
[359744089,1746293455398,-400.0,0.00021857,2]
[359744090,1746293455408,-400.0,0.00021857,2]
[359744091,1746293455417,-471.97,0.00021857,2]
[359744092,1746293455426,-432.47,0.00021857,2]
[359744093,1746293455436,-400.0,0.00021857,2]
[359744094,1746293455445,-491.64,0.00021857,2]
[359744095,1746293455455,-400.0,0.00021857,2]
[359744096,1746293455465,-1181.64,0.00021857,2]
[359744097,1746293455475,-451.64,0.00021857,2]
[359744098,1746293455485,-400.0,0.00021857,2]
[359744099,1746293455495,-872.96,0.00021857,2]
[359744100,1746293455505,-440.68,0.00021857,2]
[359744101,1746293455514,-400.0,0.00021857,2]